[Event "Titled Tuesday Blitz June 20 Early 2023"]
[White "Oparin, Grigoriy"]
[Black "Richter, Paul"]
[WhiteFideId "24125890"]
[BlackFideId "2046350"]
[WhiteElo "2647"]
[BlackElo "2515"]
[Result "1/2-1/2"]
[Round "1"]
[TimeControl "180+2"]
[Date "2023.06.20"]
[WhiteClock "0:00:13"]
[BlackClock "0:00:08"]
[Board "15"]

1. e4 {[%clk 0:02:59]}  c5 {[%clk 0:02:59]} 2. Nf3 {[%clk 0:02:59]}  d6 {[%clk 0:02:59]} 3. Bb5+ {[%clk 0:02:59]}  Nc6 {[%clk 0:02:59]} 4. O-O {[%clk 0:02:59]}  Bd7 {[%clk 0:02:59]} 5. Re1 {[%clk 0:02:59]}  Nf6 {[%clk 0:02:59]} 6. c3 {[%clk 0:02:57]}  a6 {[%clk 0:02:59]} 7. Bf1 {[%clk 0:02:57]}  Bg4 {[%clk 0:02:59]} 8. h3 {[%clk 0:02:57]}  Bxf3 {[%clk 0:02:59]} 9. Qxf3 {[%clk 0:02:57]}  g6 {[%clk 0:03:00]} 10. d3 {[%clk 0:02:55]}  Bg7 {[%clk 0:03:00]} 11. Bf4 {[%clk 0:02:55]}  Nd7 {[%clk 0:02:58]} 12. Nd2 {[%clk 0:02:55]}  O-O {[%clk 0:02:56]} 13. Rad1 {[%clk 0:02:53]}  b5 {[%clk 0:02:46]} 14. Qe3 {[%clk 0:02:41]}  b4 {[%clk 0:02:32]} 15. d4 {[%clk 0:02:27]}  cxd4 {[%clk 0:02:26]} 16. cxd4 {[%clk 0:02:27]}  Nxd4 {[%clk 0:02:11]} 17. Rc1 {[%clk 0:02:20]}  Nb5 {[%clk 0:01:49]} 18. Nc4 {[%clk 0:02:16]}  Ne5 {[%clk 0:01:42]} 19. Qd2 {[%clk 0:02:09]}  Nxc4 {[%clk 0:01:37]} 20. Bxc4 {[%clk 0:02:10]}  Qa5 {[%clk 0:01:04]} 21. a3 {[%clk 0:02:10]}  Rac8 {[%clk 0:01:02]} 22. axb4 {[%clk 0:02:07]}  Qb6 {[%clk 0:01:02]} 23. b3 {[%clk 0:01:59]}  Rfd8 {[%clk 0:00:48]} 24. h4 {[%clk 0:01:52]}  e6 {[%clk 0:00:41]} 25. h5 {[%clk 0:01:51]}  d5 {[%clk 0:00:37]} 26. exd5 {[%clk 0:01:52]}  exd5 {[%clk 0:00:37]} 27. Bxb5 {[%clk 0:01:49]}  Rxc1 {[%clk 0:00:34]} 28. Rxc1 {[%clk 0:01:48]}  Qxb5 {[%clk 0:00:27]} 29. h6 {[%clk 0:01:46]}  Bf8 {[%clk 0:00:20]} 30. Bg5 {[%clk 0:01:20]}  Re8 {[%clk 0:00:18]} 31. Rd1 {[%clk 0:01:15]}  Bxb4 {[%clk 0:00:14]} 32. Qd4 {[%clk 0:01:02]}  Bf8 {[%clk 0:00:12]} 33. Be3 {[%clk 0:00:57]}  Qxb3 {[%clk 0:00:11]} 34. Rc1 {[%clk 0:00:44]}  a5 {[%clk 0:00:09]} 35. Rc3 {[%clk 0:00:40]}  Qb1+ {[%clk 0:00:08]} 36. Kh2 {[%clk 0:00:39]}  Qe4 {[%clk 0:00:08]} 37. Qxe4 {[%clk 0:00:34]}  dxe4 {[%clk 0:00:07]} 38. Rc4 {[%clk 0:00:35]}  Ra8 {[%clk 0:00:07]} 39. Ra4 {[%clk 0:00:31]}  f5 {[%clk 0:00:07]} 40. Kh3 {[%clk 0:00:29]}  Kf7 {[%clk 0:00:07]} 41. g4 {[%clk 0:00:30]}  Ke6 {[%clk 0:00:06]} 42. Bd2 {[%clk 0:00:28]}  Bd6 {[%clk 0:00:06]} 43. Kg2 {[%clk 0:00:25]}  Bc7 {[%clk 0:00:06]} 44. f3 {[%clk 0:00:24]}  Kd5 {[%clk 0:00:06]} 45. fxe4+ {[%clk 0:00:24]}  fxe4 {[%clk 0:00:07]} 46. Kf2 {[%clk 0:00:24]}  Bb6+ {[%clk 0:00:07]} 47. Ke2 {[%clk 0:00:25]}  Ra7 {[%clk 0:00:07]} 48. Be1 {[%clk 0:00:24]}  e3 {[%clk 0:00:05]} 49. Kd3 {[%clk 0:00:23]}  Kc6 {[%clk 0:00:05]} 50. Bc3 {[%clk 0:00:16]}  Kb5 {[%clk 0:00:05]} 51. Re4 {[%clk 0:00:17]}  a4 {[%clk 0:00:05]} 52. Re5+ {[%clk 0:00:18]}  Ka6 {[%clk 0:00:05]} 53. Re6 {[%clk 0:00:17]}  Rb7 {[%clk 0:00:05]} 54. Re4 {[%clk 0:00:13]}  Rd7+ {[%clk 0:00:05]} 55. Kc2 {[%clk 0:00:12]}  Kb5 {[%clk 0:00:05]} 56. Rb4+ {[%clk 0:00:12]}  Kc6 {[%clk 0:00:06]} 57. Rxa4 {[%clk 0:00:13]}  Re7 {[%clk 0:00:06]} 58. Be1 {[%clk 0:00:09]}  e2 {[%clk 0:00:06]} 59. Rc4+ {[%clk 0:00:09]}  Kd5 {[%clk 0:00:06]} 60. Rc8 {[%clk 0:00:09]}  Bc5 {[%clk 0:00:06]} 61. Kd3 {[%clk 0:00:09]}  Rf7 {[%clk 0:00:06]} 62. Rd8+ {[%clk 0:00:09]}  Ke6 {[%clk 0:00:06]} 63. Re8+ {[%clk 0:00:09]}  Be7 {[%clk 0:00:06]} 64. Kxe2 {[%clk 0:00:09]}  Kd7 {[%clk 0:00:06]} 65. Rh8 {[%clk 0:00:09]}  Bg5 {[%clk 0:00:06]} 66. Bd2 {[%clk 0:00:08]}  Bxd2 {[%clk 0:00:07]} 67. Kxd2 {[%clk 0:00:09]}  Ke6 {[%clk 0:00:07]} 68. Ke3 {[%clk 0:00:10]}  Kf6 {[%clk 0:00:07]} 69. Kf4 {[%clk 0:00:10]}  g5+ {[%clk 0:00:08]} 70. Kg3 {[%clk 0:00:09]}  Kg6 {[%clk 0:00:09]} 71. Re8 {[%clk 0:00:09]}  Kxh6 {[%clk 0:00:09]} 72. Re6+ {[%clk 0:00:10]}  Kg7 {[%clk 0:00:09]} 73. Re5 {[%clk 0:00:11]}  Kg6 {[%clk 0:00:09]} 74. Rd5 {[%clk 0:00:11]}  Rf6 {[%clk 0:00:09]} 75. Rd7 {[%clk 0:00:12]}  h6 {[%clk 0:00:09]} 76. Rd8 {[%clk 0:00:12]}  Ra6 {[%clk 0:00:10]} 77. Rg8+ {[%clk 0:00:12]}  Kf7 {[%clk 0:00:10]} 78. Rc8 {[%clk 0:00:13]}  Kg7 {[%clk 0:00:08]} 1/2-1/2


[Site "https://www.chess.com"]

[Event "Titled Tuesday Blitz June 20 Early 2023"]
[White "Goffredo_Fofi"]
[Black "Puranik, Abhimanyu"]
[BlackFideId "5061245"]
[WhiteElo "2511"]
[BlackElo "2460"]
[Result "0-1"]
[Round "1"]
[TimeControl "180+2"]
[Date "2023.06.20"]
[WhiteClock "0:00:15"]
[BlackClock "0:00:20"]
[Board "18"]

1. Nf3 {[%clk 0:03:00]}  Nf6 {[%clk 0:02:59]} 2. d4 {[%clk 0:03:00]}  b6 {[%clk 0:02:58]} 3. Bf4 {[%clk 0:02:58]}  Bb7 {[%clk 0:02:59]} 4. e3 {[%clk 0:02:58]}  e6 {[%clk 0:02:59]} 5. Nbd2 {[%clk 0:02:57]}  c5 {[%clk 0:02:59]} 6. c3 {[%clk 0:02:56]}  Be7 {[%clk 0:02:58]} 7. h3 {[%clk 0:02:57]}  Nc6 {[%clk 0:02:57]} 8. Bd3 {[%clk 0:02:57]}  O-O {[%clk 0:02:48]} 9. O-O {[%clk 0:02:57]}  Rc8 {[%clk 0:02:45]} 10. Re1 {[%clk 0:02:53]}  d6 {[%clk 0:02:32]} 11. e4 {[%clk 0:02:42]}  cxd4 {[%clk 0:02:31]} 12. cxd4 {[%clk 0:02:43]}  e5 {[%clk 0:02:32]} 13. Be3 {[%clk 0:02:33]}  exd4 {[%clk 0:02:29]} 14. Nxd4 {[%clk 0:02:34]}  Ne5 {[%clk 0:02:28]} 15. Bb1 {[%clk 0:02:29]}  Re8 {[%clk 0:02:26]} 16. Nf5 {[%clk 0:02:17]}  Bf8 {[%clk 0:02:26]} 17. Bg5 {[%clk 0:02:15]}  h6 {[%clk 0:02:14]} 18. Bh4 {[%clk 0:02:14]}  g6 {[%clk 0:02:07]} 19. Ne3 {[%clk 0:02:01]}  Bg7 {[%clk 0:01:58]} 20. f4 {[%clk 0:01:59]}  Ned7 {[%clk 0:01:53]} 21. Ndc4 {[%clk 0:01:57]}  Bf8 {[%clk 0:01:15]} 22. e5 {[%clk 0:01:19]}  dxe5 {[%clk 0:00:57]} 23. fxe5 {[%clk 0:01:20]}  b5 {[%clk 0:00:55]} 24. Nd6 {[%clk 0:00:52]}  Bxd6 {[%clk 0:00:52]} 25. Qxd6 {[%clk 0:00:53]}  Rxe5 {[%clk 0:00:43]} 26. Bxf6 {[%clk 0:00:25]}  Qxf6 {[%clk 0:00:43]} 27. Qxd7 {[%clk 0:00:25]}  Rxe3 {[%clk 0:00:43]} 28. Rf1 {[%clk 0:00:22]}  Qe7 {[%clk 0:00:22]} 29. Qd4 {[%clk 0:00:22]}  Re2 {[%clk 0:00:20]} 30. Rf2 {[%clk 0:00:20]}  Rc1+ {[%clk 0:00:20]} 31. Kh2 {[%clk 0:00:15]}  Qc7+ {[%clk 0:00:20]} 0-1


[Site "https://www.chess.com"]

[Event "Titled Tuesday Blitz June 20 Early 2023"]
[White "Goltseva, Ekaterina"]
[Black "Tabatabaei, M. Amin"]
[WhiteFideId "24173770"]
[BlackFideId "12521213"]
[WhiteElo "2114"]
[BlackElo "2575"]
[Result "0-1"]
[Round "1"]
[TimeControl "180+2"]
[Date "2023.06.20"]
[WhiteClock "0:00:09"]
[BlackClock "0:00:36"]
[Board "22"]

1. Nf3 {[%clk 0:02:57]}  Nf6 {[%clk 0:02:59]} 2. e3 {[%clk 0:02:55]}  g6 {[%clk 0:02:58]} 3. b3 {[%clk 0:02:54]}  Bg7 {[%clk 0:02:58]} 4. Bb2 {[%clk 0:02:54]}  O-O {[%clk 0:02:59]} 5. c4 {[%clk 0:02:54]}  d6 {[%clk 0:02:59]} 6. d4 {[%clk 0:02:53]}  e5 {[%clk 0:02:58]} 7. Be2 {[%clk 0:02:53]}  e4 {[%clk 0:02:58]} 8. Nfd2 {[%clk 0:02:50]}  Re8 {[%clk 0:02:59]} 9. Nc3 {[%clk 0:02:50]}  c5 {[%clk 0:02:58]} 10. d5 {[%clk 0:02:47]}  h5 {[%clk 0:02:55]} 11. Qc2 {[%clk 0:02:40]}  Qe7 {[%clk 0:02:55]} 12. h3 {[%clk 0:02:35]}  h4 {[%clk 0:02:30]} 13. g4 {[%clk 0:02:12]}  hxg3 {[%clk 0:02:30]} 14. fxg3 {[%clk 0:02:12]}  a6 {[%clk 0:02:31]} 15. a4 {[%clk 0:02:09]}  Nbd7 {[%clk 0:02:16]} 16. O-O-O {[%clk 0:01:43]}  Bh6 {[%clk 0:01:53]} 17. Nf1 {[%clk 0:01:36]}  Ne5 {[%clk 0:01:51]} 18. g4 {[%clk 0:01:32]}  b5 {[%clk 0:01:40]} 19. cxb5 {[%clk 0:01:23]}  axb5 {[%clk 0:01:27]} 20. Bxb5 {[%clk 0:01:21]}  Bd7 {[%clk 0:01:28]} 21. Nxe4 {[%clk 0:01:01]}  Nxe4 {[%clk 0:01:16]} 22. Qxe4 {[%clk 0:01:00]}  Bxb5 {[%clk 0:01:16]} 23. axb5 {[%clk 0:00:59]}  Ra2 {[%clk 0:01:11]} 24. Bxe5 {[%clk 0:00:33]}  Qa7 {[%clk 0:01:10]} 25. Rh2 {[%clk 0:00:27]}  Rxh2 {[%clk 0:01:06]} 26. Nxh2 {[%clk 0:00:26]}  Rxe5 {[%clk 0:01:05]} 27. Qc2 {[%clk 0:00:22]}  Rxe3 {[%clk 0:00:51]} 28. Kb1 {[%clk 0:00:19]}  Bg7 {[%clk 0:00:52]} 29. Qa2 {[%clk 0:00:16]}  Qe7 {[%clk 0:00:43]} 30. Nf1 {[%clk 0:00:15]}  Qe4+ {[%clk 0:00:41]} 31. Qc2 {[%clk 0:00:15]}  Rxb3+ {[%clk 0:00:41]} 32. Kc1 {[%clk 0:00:15]}  Rc3 {[%clk 0:00:40]} 33. b6 {[%clk 0:00:09]}  Qxc2# {[%clk 0:00:36]} 0-1


[Site "https://www.chess.com"]

[Event "Titled Tuesday Blitz June 20 Early 2023"]
[White "Camilla_Lee"]
[Black "Svane, Rasmus"]
[BlackFideId "4657101"]
[WhiteElo "2508"]
[BlackElo "2601"]
[Result "0-1"]
[Round "1"]
[TimeControl "180+2"]
[Date "2023.06.20"]
[WhiteClock "0:01:47"]
[BlackClock "0:02:23"]
[Board "24"]

1. e4 {[%clk 0:03:00]}  c6 {[%clk 0:03:00]} 2. d4 {[%clk 0:03:00]}  d5 {[%clk 0:03:01]} 3. Nc3 {[%clk 0:03:00]}  dxe4 {[%clk 0:03:00]} 4. Nxe4 {[%clk 0:03:01]}  Nf6 {[%clk 0:03:00]} 5. Ng5 {[%clk 0:02:59]}  h6 {[%clk 0:02:55]} 6. Nxf7 {[%clk 0:02:59]}  Kxf7 {[%clk 0:02:56]} 7. Nf3 {[%clk 0:02:59]}  Be6 {[%clk 0:02:55]} 8. Ne5+ {[%clk 0:02:49]}  Kg8 {[%clk 0:02:54]} 9. Bd3 {[%clk 0:02:47]}  Nbd7 {[%clk 0:02:54]} 10. Ng6 {[%clk 0:02:42]}  Bf7 {[%clk 0:02:54]} 11. Nxh8 {[%clk 0:02:41]}  Kxh8 {[%clk 0:02:55]} 12. Qe2 {[%clk 0:02:36]}  e5 {[%clk 0:02:52]} 13. dxe5 {[%clk 0:02:36]}  Qa5+ {[%clk 0:02:52]} 14. Bd2 {[%clk 0:02:36]}  Qxe5 {[%clk 0:02:53]} 15. O-O-O {[%clk 0:02:32]}  Bxa2 {[%clk 0:02:44]} 16. Qxe5 {[%clk 0:02:26]}  Nxe5 {[%clk 0:02:45]} 17. Bf5 {[%clk 0:02:26]}  Bd5 {[%clk 0:02:43]} 18. f3 {[%clk 0:02:25]}  Nc4 {[%clk 0:02:40]} 19. Bc3 {[%clk 0:02:25]}  Ne3 {[%clk 0:02:39]} 20. Bd3 {[%clk 0:02:19]}  Nxd1 {[%clk 0:02:39]} 21. Kxd1 {[%clk 0:02:20]}  Rd8 {[%clk 0:02:37]} 22. Ke2 {[%clk 0:02:19]}  Bc5 {[%clk 0:02:37]} 23. Ra1 {[%clk 0:02:17]}  Kg8 {[%clk 0:02:37]} 24. b4 {[%clk 0:02:11]}  Bb6 {[%clk 0:02:36]} 25. b5 {[%clk 0:02:08]}  Kf7 {[%clk 0:02:34]} 26. bxc6 {[%clk 0:02:08]}  Bxc6 {[%clk 0:02:35]} 27. Bc4+ {[%clk 0:02:05]}  Bd5 {[%clk 0:02:33]} 28. Bd3 {[%clk 0:02:04]}  Be6 {[%clk 0:02:32]} 29. g4 {[%clk 0:02:03]}  Nd5 {[%clk 0:02:32]} 30. Bd2 {[%clk 0:02:02]}  g5 {[%clk 0:02:32]} 31. Ra4 {[%clk 0:02:01]}  Re8 {[%clk 0:02:32]} 32. Kf1 {[%clk 0:02:01]}  Ne3+ {[%clk 0:02:30]} 33. Ke2 {[%clk 0:01:53]}  Nxc2 {[%clk 0:02:27]} 34. Bxc2 {[%clk 0:01:52]}  Bb3+ {[%clk 0:02:26]} 35. Kd3 {[%clk 0:01:52]}  Rd8+ {[%clk 0:02:23]} 36. Kc3 {[%clk 0:01:47]}  Bxa4 {[%clk 0:02:23]} 0-1


[Site "https://www.chess.com"]

[Event "Titled Tuesday Blitz June 20 Early 2023"]
[White "Reprintsev, Alexander"]
[Black "Indjic, Aleksandar"]
[WhiteFideId "14100541"]
[BlackFideId "911925"]
[WhiteElo "2229"]
[BlackElo "2614"]
[Result "0-1"]
[Round "1"]
[TimeControl "180+2"]
[Date "2023.06.20"]
[WhiteClock "0:00:19"]
[BlackClock "0:00:46"]
[Board "26"]

1. e4 {[%clk 0:02:55]}  e6 {[%clk 0:02:59]} 2. d4 {[%clk 0:02:55]}  d5 {[%clk 0:03:00]} 3. Nc3 {[%clk 0:02:55]}  Bb4 {[%clk 0:02:55]} 4. Ne2 {[%clk 0:02:55]}  Nf6 {[%clk 0:02:46]} 5. e5 {[%clk 0:02:52]}  Nfd7 {[%clk 0:02:46]} 6. a3 {[%clk 0:02:52]}  Be7 {[%clk 0:02:45]} 7. f4 {[%clk 0:02:52]}  c5 {[%clk 0:02:45]} 8. Be3 {[%clk 0:02:52]}  a6 {[%clk 0:02:45]} 9. g3 {[%clk 0:02:47]}  Nc6 {[%clk 0:02:45]} 10. Bh3 {[%clk 0:02:44]}  g6 {[%clk 0:02:34]} 11. O-O {[%clk 0:02:44]}  h5 {[%clk 0:02:31]} 12. dxc5 {[%clk 0:02:33]}  Nxc5 {[%clk 0:02:29]} 13. Nd4 {[%clk 0:02:32]}  Nxd4 {[%clk 0:02:25]} 14. Bxd4 {[%clk 0:02:32]}  b5 {[%clk 0:02:07]} 15. b4 {[%clk 0:02:26]}  Nd7 {[%clk 0:02:04]} 16. Ne2 {[%clk 0:02:21]}  Nb6 {[%clk 0:02:01]} 17. Nc1 {[%clk 0:02:20]}  Na4 {[%clk 0:01:59]} 18. Nb3 {[%clk 0:02:18]}  Bd7 {[%clk 0:01:56]} 19. Rf3 {[%clk 0:02:13]}  Qc7 {[%clk 0:01:56]} 20. Bf1 {[%clk 0:02:09]}  g5 {[%clk 0:01:53]} 21. fxg5 {[%clk 0:02:05]}  Bxg5 {[%clk 0:01:52]} 22. Nc5 {[%clk 0:02:02]}  Nxc5 {[%clk 0:01:51]} 23. Bxc5 {[%clk 0:02:02]}  h4 {[%clk 0:01:48]} 24. Qd4 {[%clk 0:01:50]}  hxg3 {[%clk 0:01:45]} 25. hxg3 {[%clk 0:01:51]}  Be7 {[%clk 0:01:43]} 26. Rc3 {[%clk 0:01:49]}  Bxc5 {[%clk 0:01:43]} 27. Rxc5 {[%clk 0:01:48]}  Qd8 {[%clk 0:01:43]} 28. Qf4 {[%clk 0:01:43]}  Rc8 {[%clk 0:01:43]} 29. Bd3 {[%clk 0:01:36]}  Rxc5 {[%clk 0:01:42]} 30. bxc5 {[%clk 0:01:36]}  Qe7 {[%clk 0:01:42]} 31. Qe3 {[%clk 0:01:33]}  Bc6 {[%clk 0:01:39]} 32. Kf2 {[%clk 0:01:20]}  Rh2+ {[%clk 0:01:36]} 33. Ke1 {[%clk 0:01:20]}  Rh1+ {[%clk 0:01:32]} 34. Bf1 {[%clk 0:01:19]}  d4 {[%clk 0:01:32]} 35. Qxd4 {[%clk 0:01:11]}  Qg5 {[%clk 0:01:32]} 36. Qf4 {[%clk 0:01:07]}  Qxf4 {[%clk 0:01:03]} 37. gxf4 {[%clk 0:01:06]}  Bg2 {[%clk 0:01:03]} 38. Kf2 {[%clk 0:01:06]}  Bxf1 {[%clk 0:01:03]} 39. Rxf1 {[%clk 0:01:06]}  Rxf1+ {[%clk 0:00:52]} 40. Kxf1 {[%clk 0:01:06]}  Kd7 {[%clk 0:00:52]} 41. Ke2 {[%clk 0:01:01]}  Kc6 {[%clk 0:00:53]} 42. Kd3 {[%clk 0:00:59]}  Kxc5 {[%clk 0:00:53]} 43. Kc3 {[%clk 0:00:58]}  a5 {[%clk 0:00:53]} 44. Kd3 {[%clk 0:00:57]}  Kd5 {[%clk 0:00:48]} 45. Kc3 {[%clk 0:00:22]}  Ke4 {[%clk 0:00:48]} 46. a4 {[%clk 0:00:22]}  bxa4 {[%clk 0:00:47]} 47. Kb2 {[%clk 0:00:19]}  Kxf4 {[%clk 0:00:46]} 0-1


[Site "https://www.chess.com"]

[Event "Titled Tuesday Blitz June 20 Early 2023"]
[White "Makhnev, Denis"]
[Black "Garcia Blanco, Omar"]
[WhiteFideId "13707647"]
[BlackFideId "2287153"]
[WhiteElo "2515"]
[BlackElo "2356"]
[Result "0-1"]
[Round "1"]
[TimeControl "180+2"]
[Date "2023.06.20"]
[WhiteClock "0:00:00"]
[BlackClock "0:00:13"]
[Board "27"]

1. d4 {[%clk 0:02:58]}  Nf6 {[%clk 0:02:59]} 2. c4 {[%clk 0:02:59]}  e6 {[%clk 0:03:00]} 3. Nf3 {[%clk 0:02:59]}  d5 {[%clk 0:03:00]} 4. g3 {[%clk 0:03:00]}  Be7 {[%clk 0:03:01]} 5. Bg2 {[%clk 0:03:00]}  O-O {[%clk 0:03:01]} 6. O-O {[%clk 0:03:01]}  c6 {[%clk 0:03:02]} 7. Qc2 {[%clk 0:03:01]}  b6 {[%clk 0:03:00]} 8. Bf4 {[%clk 0:03:01]}  Bb7 {[%clk 0:03:00]} 9. Rd1 {[%clk 0:03:01]}  Na6 {[%clk 0:02:59]} 10. Ne5 {[%clk 0:02:57]}  Rc8 {[%clk 0:02:51]} 11. Nc3 {[%clk 0:02:57]}  b5 {[%clk 0:02:45]} 12. c5 {[%clk 0:02:54]}  Nd7 {[%clk 0:02:42]} 13. a3 {[%clk 0:02:44]}  Nxe5 {[%clk 0:02:41]} 14. Bxe5 {[%clk 0:02:43]}  f6 {[%clk 0:02:40]} 15. Bf4 {[%clk 0:02:43]}  e5 {[%clk 0:02:28]} 16. dxe5 {[%clk 0:02:36]}  fxe5 {[%clk 0:02:24]} 17. Bxe5 {[%clk 0:02:27]}  Bxc5 {[%clk 0:02:18]} 18. e3 {[%clk 0:02:15]}  Qe7 {[%clk 0:02:18]} 19. Bd4 {[%clk 0:02:15]}  Bxd4 {[%clk 0:02:17]} 20. Rxd4 {[%clk 0:01:56]}  Nc5 {[%clk 0:02:15]} 21. b4 {[%clk 0:01:56]}  Nd7 {[%clk 0:02:11]} 22. Rd2 {[%clk 0:01:57]}  Ne5 {[%clk 0:02:07]} 23. Ne2 {[%clk 0:01:55]}  a5 {[%clk 0:02:05]} 24. Qc3 {[%clk 0:01:50]}  Nc4 {[%clk 0:02:01]} 25. Rda2 {[%clk 0:01:40]}  a4 {[%clk 0:01:44]} 26. Nd4 {[%clk 0:01:39]}  Rf6 {[%clk 0:01:43]} 27. Re2 {[%clk 0:01:37]}  Rcf8 {[%clk 0:01:43]} 28. Rae1 {[%clk 0:01:35]}  Nd6 {[%clk 0:01:16]} 29. Nxc6 {[%clk 0:01:18]}  Qc7 {[%clk 0:01:08]} 30. Bxd5+ {[%clk 0:01:07]}  Kh8 {[%clk 0:01:08]} 31. Rc1 {[%clk 0:01:07]}  Nc4 {[%clk 0:01:06]} 32. Qd4 {[%clk 0:00:44]}  Bxc6 {[%clk 0:01:02]} 33. Bxc4 {[%clk 0:00:45]}  bxc4 {[%clk 0:01:02]} 34. Rxc4 {[%clk 0:00:45]}  Rd6 {[%clk 0:01:02]} 35. Qc3 {[%clk 0:00:43]}  Qd7 {[%clk 0:00:59]} 36. Re1 {[%clk 0:00:38]}  Rd3 {[%clk 0:00:53]} 37. Qe5 {[%clk 0:00:33]}  Rd1 {[%clk 0:00:46]} 38. Rc1 {[%clk 0:00:33]}  Rxe1+ {[%clk 0:00:44]} 39. Rxe1 {[%clk 0:00:33]}  Qd2 {[%clk 0:00:45]} 40. Rf1 {[%clk 0:00:33]}  Qe2 {[%clk 0:00:41]} 41. f3 {[%clk 0:00:20]}  Bxf3 {[%clk 0:00:39]} 42. Rf2 {[%clk 0:00:20]}  Qd1+ {[%clk 0:00:34]} 43. Rf1 {[%clk 0:00:20]}  Qc2 {[%clk 0:00:35]} 44. Rf2 {[%clk 0:00:21]}  Qc1+ {[%clk 0:00:35]} 45. Rf1 {[%clk 0:00:22]}  Qc8 {[%clk 0:00:26]} 46. Qd6 {[%clk 0:00:14]}  h6 {[%clk 0:00:24]} 47. b5 {[%clk 0:00:13]}  Rf6 {[%clk 0:00:22]} 48. Qd2 {[%clk 0:00:10]}  Qc5 {[%clk 0:00:20]} 49. Qd8+ {[%clk 0:00:06]}  Rf8 {[%clk 0:00:17]} 50. Qd3 {[%clk 0:00:06]}  Bb7 {[%clk 0:00:14]} 51. Rxf8+ {[%clk 0:00:06]}  Qxf8 {[%clk 0:00:15]} 52. Qe2 {[%clk 0:00:02]}  Qe7 {[%clk 0:00:15]} 53. b6 {[%clk 0:00:02]}  Qe4 {[%clk 0:00:15]} 54. Kf2 {[%clk 0:00:02]}  Qh1 {[%clk 0:00:14]} 55. e4 {[%clk 0:00:01]}  Qxh2+ {[%clk 0:00:13]} 56. Ke3 {[%clk 0:00:02]}  Qxe2+ {[%clk 0:00:13]} 57. Kxe2 {[%clk 0:00:03]}  Bxe4 {[%clk 0:00:14]} 58. Ke3 {[%clk 0:00:04]}  Bg2 {[%clk 0:00:14]} 59. Kd4 {[%clk 0:00:04]}  g5 {[%clk 0:00:13]} 60. Ke5 {[%clk 0:00:05]}  Kg7 {[%clk 0:00:14]} 61. Kf5 {[%clk 0:00:05]}  Kf7 {[%clk 0:00:13]} 62. g4 {[%clk 0:00:06]}  Bf3 {[%clk 0:00:12]} 63. Ke5 {[%clk 0:00:06]}  Kg6 {[%clk 0:00:11]} 64. Kd4 {[%clk 0:00:05]}  h5 {[%clk 0:00:10]} 65. gxh5+ {[%clk 0:00:06]}  Kxh5 {[%clk 0:00:11]} 66. Kc4 {[%clk 0:00:05]}  g4 {[%clk 0:00:11]} 67. Kb4 {[%clk 0:00:06]}  g3 {[%clk 0:00:12]} 68. Kxa4 {[%clk 0:00:07]}  g2 {[%clk 0:00:12]} 69. Kb5 {[%clk 0:00:08]}  g1=Q {[%clk 0:00:13]} 70. Ka5 {[%clk 0:00:09]}  Qc5+ {[%clk 0:00:11]} 71. Ka6 {[%clk 0:00:10]}  Qc6 {[%clk 0:00:11]} 72. Ka5 {[%clk 0:00:10]}  Qa8+ {[%clk 0:00:11]} 73. Kb4 {[%clk 0:00:10]}  Qa6 {[%clk 0:00:11]} 74. Kc5 {[%clk 0:00:11]}  Qxa3+ {[%clk 0:00:11]} 75. Kb5 {[%clk 0:00:12]}  Qa8 {[%clk 0:00:12]} 76. Kc5 {[%clk 0:00:12]}  Qb7 {[%clk 0:00:13]} 77. Kd4 {[%clk 0:00:13]}  Qxb6+ {[%clk 0:00:13]} 78. Ke5 {[%clk 0:00:00]}  Qc5+ {[%clk 0:00:13]} 0-1


[Site "https://www.chess.com"]